[Event "*** Titled Tuesday Blitz"]
[Site "Chess.com"]
[Date "2020.05.05"]
[Round "7"]
[White "Maghalashvili"]
[Black "Quaternitychess"]
[Result "0-1"]
[WhiteElo "2801"]
[BlackElo "2525"]
[TimeControl "180+1"]
[EndTime "11:17:06 PDT"]
[Termination "Quaternitychess won by resignation"]

1. Nf3 {[%clk 0:03:00.9]} 1... d5 {[%clk 0:02:59.3]} 2. g3 {[%clk 0:02:58.9]}
2... Nc6 {[%clk 0:02:59.1]} 3. d4 {[%clk 0:02:59.2]} 3... Bf5 {[%clk 0:02:58.7]}
4. Bg2 {[%clk 0:02:59.1]} 4... Nb4 {[%clk 0:02:59.3]} 5. Na3 {[%clk 0:02:59.2]}
5... e6 {[%clk 0:02:59.8]} 6. O-O {[%clk 0:02:59.1]} 6... h6 {[%clk 0:02:59.9]}
7. c3 {[%clk 0:02:59.4]} 7... Nc6 {[%clk 0:02:59.6]} 8. Nc2 {[%clk 0:02:55.7]}
8... Nf6 {[%clk 0:02:58.6]} 9. b3 {[%clk 0:02:54.9]} 9... Be7 {[%clk 0:02:50.1]}
10. Bb2 {[%clk 0:02:52.6]} 10... O-O {[%clk 0:02:50.2]} 11. c4 {[%clk 0:02:53]}
11... a5 {[%clk 0:02:48.3]} 12. Nd2 {[%clk 0:02:41.4]} 12... Nb4 {[%clk
0:02:44.7]} 13. Ne3 {[%clk 0:02:30.7]} 13... Bh7 {[%clk 0:02:38.6]} 14. a3
{[%clk 0:02:29.9]} 14... Na6 {[%clk 0:02:37.1]} 15. Bc3 {[%clk 0:02:24]} 15...
c6 {[%clk 0:02:36.5]} 16. Qc1 {[%clk 0:02:14.2]} 16... b5 {[%clk 0:02:35.1]} 17.
c5 {[%clk 0:02:08.4]} 17... b4 {[%clk 0:01:58.1]} 18. axb4 {[%clk 0:02:03.4]}
18... axb4 {[%clk 0:01:58.1]} 19. Bb2 {[%clk 0:02:03.1]} 19... Qc7 {[%clk
0:01:57.8]} 20. h3 {[%clk 0:01:45.7]} 20... Qb7 {[%clk 0:01:57.2]} 21. Ng4
{[%clk 0:01:02.4]} 21... Nc7 {[%clk 0:01:57]} 22. Ne5 {[%clk 0:00:59.3]} 22...
Nb5 {[%clk 0:01:53.8]} 23. Rxa8 {[%clk 0:00:57.3]} 23... Rxa8 {[%clk 0:01:53]}
24. f4 {[%clk 0:00:51.7]} 24... Ra2 {[%clk 0:01:51.6]} 25. g4 {[%clk 0:00:46.4]}
25... Nd7 {[%clk 0:01:47.8]} 26. e4 {[%clk 0:00:42.4]} 26... Nxe5 {[%clk
0:01:45.7]} 27. fxe5 {[%clk 0:00:40]} 27... Bg5 {[%clk 0:01:45.2]} 28. exd5
{[%clk 0:00:28.9]} 28... exd5 {[%clk 0:01:44.4]} 29. Rf2 {[%clk 0:00:23.6]}
29... Be3 {[%clk 0:01:34.6]} 0-1

[Event "*** Titled Tuesday Blitz"]
[Site "Chess.com"]
[Date "2020.05.05"]
[Round "7"]
[White "korkmaz16"]
[Black "JozefKneht"]
[Result "1-0"]
[WhiteElo "2321"]
[BlackElo "2460"]
[TimeControl "180+1"]
[EndTime "11:17:07 PDT"]
[Termination "korkmaz16 won by resignation"]

1. e4 {[%clk 0:03:00.9]} 1... e5 {[%clk 0:02:58.1]} 2. Nc3 {[%clk 0:02:56.7]}
2... Nf6 {[%clk 0:02:57.3]} 3. f4 {[%clk 0:02:56.4]} 3... d5 {[%clk 0:02:56.7]}
4. fxe5 {[%clk 0:02:55.4]} 4... Nxe4 {[%clk 0:02:56.6]} 5. Qf3 {[%clk
0:02:55.7]} 5... f5 {[%clk 0:02:51.8]} 6. exf6 {[%clk 0:02:49.7]} 6... Nxf6
{[%clk 0:02:50.9]} 7. d4 {[%clk 0:02:42]} 7... Bd6 {[%clk 0:02:42.1]} 8. Bg5
{[%clk 0:02:29.9]} 8... O-O {[%clk 0:02:41.3]} 9. Nxd5 {[%clk 0:02:09.9]} 9...
Qe8+ {[%clk 0:02:40.9]} 10. Be2 {[%clk 0:02:08]} 10... Ne4 {[%clk 0:02:27.9]}
11. Qe3 {[%clk 0:01:49.4]} 11... Qg6 {[%clk 0:02:12.6]} 12. Nf3 {[%clk
0:01:40.3]} 12... Rxf3 {[%clk 0:02:03.1]} 13. Bxf3 {[%clk 0:01:06.2]} 13... Nxg5
{[%clk 0:02:01.4]} 14. O-O {[%clk 0:00:52]} 14... Nxf3+ {[%clk 0:01:52.9]} 15.
Qxf3 {[%clk 0:00:49.3]} 15... Nc6 {[%clk 0:01:52.2]} 16. Nxc7 {[%clk 0:00:42.6]}
16... h6 {[%clk 0:01:40.7]} 17. Nxa8 {[%clk 0:00:36]} 17... Nxd4 {[%clk
0:01:32.7]} 18. Qd5+ {[%clk 0:00:34.9]} 18... Kh7 {[%clk 0:01:31.6]} 19. Qxd4
{[%clk 0:00:31.1]} 19... Bh3 {[%clk 0:01:23.8]} 20. Qd5 {[%clk 0:00:26.8]} 20...
Bd7 {[%clk 0:01:05]} 21. Qd3 {[%clk 0:00:20.5]} 1-0

[Event "*** Titled Tuesday Blitz"]
[Site "Chess.com"]
[Date "2020.05.05"]
[Round "7"]
[White "MattyDPerrine"]
[Black "Lunow"]
[Result "0-1"]
[WhiteElo "2347"]
[BlackElo "2213"]
[TimeControl "180+1"]
[EndTime "11:17:11 PDT"]
[Termination "Lunow won on time"]

1. Nf3 {[%clk 0:01:06.7]} 1... c5 {[%clk 0:02:55.3]} 2. c4 {[%clk 0:01:06.8]}
2... Nc6 {[%clk 0:02:54]} 3. d4 {[%clk 0:01:06.3]} 3... cxd4 {[%clk 0:02:49.3]}
4. Nxd4 {[%clk 0:01:07.2]} 4... Nf6 {[%clk 0:02:47]} 5. Nc3 {[%clk 0:01:07.3]}
5... e6 {[%clk 0:02:46.2]} 6. g3 {[%clk 0:01:04.3]} 6... Qb6 {[%clk 0:02:42.6]}
7. Nc2 {[%clk 0:00:52.5]} 7... Ne5 {[%clk 0:02:35.7]} 8. Ne3 {[%clk 0:00:44.2]}
8... Bb4 {[%clk 0:02:09.7]} 9. Bg2 {[%clk 0:00:36.4]} 9... O-O {[%clk
0:02:03.6]} 10. O-O {[%clk 0:00:36.4]} 10... Bxc3 {[%clk 0:01:57.1]} 11. bxc3
{[%clk 0:00:37.3]} 11... d6 {[%clk 0:01:55.8]} 12. Ba3 {[%clk 0:00:35.4]} 12...
Rd8 {[%clk 0:01:51.9]} 13. Qd4 {[%clk 0:00:35.9]} 13... Qc7 {[%clk 0:01:49.6]}
14. Rfd1 {[%clk 0:00:33.6]} 14... Ne8 {[%clk 0:01:46.3]} 15. c5 {[%clk
0:00:20.4]} 15... d5 {[%clk 0:01:44.3]} 16. c4 {[%clk 0:00:15.3]} 16... Nc6
{[%clk 0:01:40.6]} 17. Qd2 {[%clk 0:00:05.4]} 17... d4 {[%clk 0:01:39.8]} 18.
Nc2 {[%clk 0:00:06]} 18... e5 {[%clk 0:01:37.7]} 19. e3 {[%clk 0:00:05.7]} 19...
Bg4 {[%clk 0:01:31]} 20. Rdc1 {[%clk 0:00:02.3]} 20... Be6 {[%clk 0:01:20.8]}
21. Ne1 {[%clk 0:00:01.6]} 21... Nf6 {[%clk 0:01:17.4]} 0-1

[Event "*** Titled Tuesday Blitz"]
[Site "Chess.com"]
[Date "2020.05.05"]
[Round "7"]
[White "Sanyura"]
[Black "Vusatiuk_Vladimir"]
[Result "1-0"]
[WhiteElo "2489"]
[BlackElo "2341"]
[TimeControl "180+1"]
[EndTime "11:17:12 PDT"]
[Termination "Sanyura won by resignation"]

1. e4 {[%clk 0:03:00.9]} 1... c5 {[%clk 0:03:00]} 2. Nf3 {[%clk 0:03:00.6]} 2...
Nc6 {[%clk 0:03:00.4]} 3. d4 {[%clk 0:03:00.9]} 3... cxd4 {[%clk 0:03:01.3]} 4.
Nxd4 {[%clk 0:03:01.6]} 4... e5 {[%clk 0:03:01.8]} 5. Nb5 {[%clk 0:03:01.1]}
5... d6 {[%clk 0:03:02.4]} 6. N1c3 {[%clk 0:02:59.6]} 6... a6 {[%clk 0:03:02.5]}
7. Na3 {[%clk 0:03:00.3]} 7... b5 {[%clk 0:03:02.9]} 8. Nd5 {[%clk 0:03:01]}
8... Nf6 {[%clk 0:03:03.4]} 9. Bg5 {[%clk 0:03:01.3]} 9... Be7 {[%clk
0:03:03.9]} 10. Bxf6 {[%clk 0:03:01.7]} 10... Bxf6 {[%clk 0:03:04.5]} 11. c3
{[%clk 0:03:02.3]} 11... O-O {[%clk 0:03:03.8]} 12. Nc2 {[%clk 0:03:02.8]} 12...
Bg5 {[%clk 0:03:04.2]} 13. a4 {[%clk 0:03:03.4]} 13... bxa4 {[%clk 0:03:05.1]}
14. Rxa4 {[%clk 0:03:02.9]} 14... a5 {[%clk 0:03:05.5]} 15. Bb5 {[%clk
0:02:58.6]} 15... Bd7 {[%clk 0:03:00.8]} 16. O-O {[%clk 0:02:58]} 16... Rb8
{[%clk 0:02:51.4]} 17. Qe2 {[%clk 0:02:35.5]} 17... Rxb5 {[%clk 0:02:35.6]} 18.
Qxb5 {[%clk 0:02:35]} 18... Nd4 {[%clk 0:02:35.4]} 19. Qxa5 {[%clk 0:02:35.3]}
19... Bxa4 {[%clk 0:02:24.3]} 20. Qxa4 {[%clk 0:02:35]} 20... Ne2+ {[%clk
0:02:13.7]} 21. Kh1 {[%clk 0:02:34.5]} 21... f5 {[%clk 0:02:03.6]} 22. Qc4
{[%clk 0:02:33.7]} 22... Nc1 {[%clk 0:01:44]} 23. Nc7+ {[%clk 0:02:24.6]} 23...
Kh8 {[%clk 0:01:42.7]} 24. Ne6 {[%clk 0:02:24.3]} 24... Qf6 {[%clk 0:01:36.2]}
25. Nxf8 {[%clk 0:02:22.6]} 25... Qxf8 {[%clk 0:01:37.1]} 26. exf5 {[%clk
0:02:20.9]} 26... h6 {[%clk 0:01:31.7]} 27. Ne3 {[%clk 0:02:18.2]} 27... d5
{[%clk 0:01:24.5]} 28. Qxd5 {[%clk 0:02:13.2]} 28... Ne2 {[%clk 0:01:23.6]} 29.
Qxe5 {[%clk 0:02:12.1]} 29... Nf4 {[%clk 0:01:22.1]} 30. h4 {[%clk 0:02:08.9]}
30... Nd3 {[%clk 0:01:17.3]} 31. Qd4 {[%clk 0:02:09]} 31... Bxe3 {[%clk
0:01:13.4]} 32. Qxd3 {[%clk 0:02:08.8]} 32... Bf4 {[%clk 0:01:12.7]} 33. g3
{[%clk 0:02:08.4]} 33... Qa8+ {[%clk 0:01:11.2]} 34. Kh2 {[%clk 0:02:07.9]}
34... Be5 {[%clk 0:01:11.4]} 35. b4 {[%clk 0:02:06.5]} 35... Qc6 {[%clk
0:01:04.5]} 36. c4 {[%clk 0:02:05.4]} 36... Qf6 {[%clk 0:01:02.1]} 37. c5 {[%clk
0:02:03]} 37... Qxh4+ {[%clk 0:01:01.5]} 38. Kg2 {[%clk 0:02:03.4]} 38... Qxb4
{[%clk 0:01:01.6]} 39. Qd5 {[%clk 0:02:02.5]} 39... Qc3 {[%clk 0:00:54.3]} 40.
c6 {[%clk 0:01:58.4]} 40... Bc7 {[%clk 0:00:45.6]} 41. Qd7 {[%clk 0:01:56.2]}
41... Qe5 {[%clk 0:00:43.1]} 42. Qe6 {[%clk 0:01:50.7]} 42... Qa5 {[%clk
0:00:31.4]} 43. Re1 {[%clk 0:01:50.4]} 1-0

[Event "*** Titled Tuesday Blitz"]
[Site "Chess.com"]
[Date "2020.05.05"]
[Round "7"]
[White "Jbd735"]
[Black "Eloist"]
[Result "1-0"]
[WhiteElo "2429"]
[BlackElo "2237"]
[TimeControl "180+1"]
[EndTime "11:17:14 PDT"]
[Termination "Jbd735 won by resignation"]

1. e4 {[%clk 0:03:00.9]} 1... e6 {[%clk 0:02:59.7]} 2. d4 {[%clk 0:03:00.7]}
2... d5 {[%clk 0:02:59.3]} 3. Nd2 {[%clk 0:03:01]} 3... Nf6 {[%clk 0:02:58.9]}
4. e5 {[%clk 0:03:00.8]} 4... Nfd7 {[%clk 0:02:58.9]} 5. Bd3 {[%clk 0:03:01.4]}
5... c5 {[%clk 0:02:59]} 6. c3 {[%clk 0:03:02]} 6... b6 {[%clk 0:02:59.3]} 7. f4
{[%clk 0:02:45.6]} 7... Ba6 {[%clk 0:02:54.8]} 8. Bxa6 {[%clk 0:02:45.5]} 8...
Nxa6 {[%clk 0:02:55.7]} 9. Ngf3 {[%clk 0:02:35.5]} 9... g6 {[%clk 0:02:53.3]}
10. O-O {[%clk 0:02:35.3]} 10... h5 {[%clk 0:02:53.1]} 11. Ng5 {[%clk
0:02:28.3]} 11... Be7 {[%clk 0:02:51.6]} 12. Ndf3 {[%clk 0:02:26.2]} 12... c4
{[%clk 0:02:50.7]} 13. Qc2 {[%clk 0:02:23]} 13... Nc7 {[%clk 0:02:48.3]} 14. Nh4
{[%clk 0:02:18.8]} 14... Bxg5 {[%clk 0:02:34.4]} 15. fxg5 {[%clk 0:02:19.7]}
15... Qe7 {[%clk 0:02:28.9]} 16. Nxg6 {[%clk 0:02:05]} 16... fxg6 {[%clk
0:02:24.9]} 17. Qxg6+ {[%clk 0:02:05.9]} 17... Kd8 {[%clk 0:02:22.7]} 18. Rf7
{[%clk 0:02:05.4]} 18... Qe8 {[%clk 0:02:20.2]} 19. Qg7 {[%clk 0:01:56.7]} 19...
Nb8 {[%clk 0:01:07.4]} 20. Rxc7 {[%clk 0:01:49.2]} 20... Rg8 {[%clk 0:01:05.8]}
21. Qh7 {[%clk 0:01:26.2]} 21... Rh8 {[%clk 0:01:03]} 22. Qf7 {[%clk 0:01:21.3]}
22... Na6 {[%clk 0:00:45.5]} 23. Rxa7 {[%clk 0:00:59.7]} 23... Qxf7 {[%clk
0:00:39.9]} 24. Rxf7 {[%clk 0:00:58.9]} 24... Nc7 {[%clk 0:00:31.5]} 25. g6
{[%clk 0:00:57.6]} 1-0

[Event "*** Titled Tuesday Blitz"]
[Site "Chess.com"]
[Date "2020.05.05"]
[Round "7"]
[White "mortngabriel"]
[Black "Kensei26"]
[Result "1-0"]
[WhiteElo "2443"]
[BlackElo "2154"]
[TimeControl "180+1"]
[EndTime "11:17:14 PDT"]
[Termination "mortngabriel won by resignation"]

1. e4 {[%clk 0:03:00.9]} 1... d6 {[%clk 0:02:59.1]} 2. d4 {[%clk 0:03:00.8]}
2... Nf6 {[%clk 0:02:59.2]} 3. Nc3 {[%clk 0:03:01.7]} 3... g6 {[%clk 0:02:55.6]}
4. Nf3 {[%clk 0:02:59.2]} 4... Bg7 {[%clk 0:02:55.5]} 5. Be3 {[%clk 0:02:59.8]}
5... O-O {[%clk 0:02:54]} 6. Qd2 {[%clk 0:03:00.3]} 6... a6 {[%clk 0:02:52.3]}
7. Bh6 {[%clk 0:03:00.2]} 7... b5 {[%clk 0:02:52]} 8. Bd3 {[%clk 0:02:56.4]}
8... Nc6 {[%clk 0:02:51.8]} 9. e5 {[%clk 0:02:42.4]} 9... dxe5 {[%clk
0:02:46.4]} 10. dxe5 {[%clk 0:02:43.3]} 10... Ng4 {[%clk 0:02:45.1]} 11. Bxg7
{[%clk 0:02:42.9]} 11... Kxg7 {[%clk 0:02:45]} 12. Qf4 {[%clk 0:02:34.2]} 12...
Ngxe5 {[%clk 0:02:43.1]} 13. Nxe5 {[%clk 0:02:28.6]} 13... Qd6 {[%clk
0:02:43.2]} 14. Nxg6 {[%clk 0:02:17.4]} 14... fxg6 {[%clk 0:02:31.8]} 15. Qe3
{[%clk 0:02:11.9]} 15... Bf5 {[%clk 0:02:28.1]} 16. O-O-O {[%clk 0:02:10.7]}
16... Bxd3 {[%clk 0:02:16.3]} 17. Rxd3 {[%clk 0:02:11.6]} 17... Qf4 {[%clk
0:02:16.5]} 18. Qxf4 {[%clk 0:02:04.8]} 18... Rxf4 {[%clk 0:02:15.9]} 19. f3
{[%clk 0:02:04.2]} 19... Rd4 {[%clk 0:02:07]} 20. Rxd4 {[%clk 0:01:57]} 20...
Nxd4 {[%clk 0:02:07.1]} 21. Re1 {[%clk 0:01:31]} 21... Kf7 {[%clk 0:01:47.4]}
22. Ne4 {[%clk 0:01:29.1]} 22... h6 {[%clk 0:01:45]} 23. c3 {[%clk 0:01:29]}
23... Ne6 {[%clk 0:01:37.5]} 24. g3 {[%clk 0:01:29.2]} 24... c5 {[%clk
0:01:34.9]} 25. Rd1 {[%clk 0:01:25.4]} 25... b4 {[%clk 0:01:32.8]} 26. Rd7
{[%clk 0:01:23.3]} 26... bxc3 {[%clk 0:01:32.1]} 27. bxc3 {[%clk 0:01:22.9]}
27... Ke8 {[%clk 0:01:22.4]} 28. Rb7 {[%clk 0:01:17.8]} 28... Rd8 {[%clk
0:01:18.2]} 29. Kc2 {[%clk 0:01:10.8]} 29... c4 {[%clk 0:01:06.5]} 30. Rb6
{[%clk 0:01:03.3]} 30... Kf7 {[%clk 0:01:05.8]} 31. Rxa6 {[%clk 0:01:03.6]}
31... Rd3 {[%clk 0:01:05.8]} 32. Rxe6 {[%clk 0:01:03.7]} 32... Rxf3 {[%clk
0:01:00.5]} 33. Rc6 {[%clk 0:01:03.1]} 33... Re3 {[%clk 0:00:57.8]} 34. Rxc4
{[%clk 0:01:02.9]} 34... Re2+ {[%clk 0:00:57.1]} 35. Kb3 {[%clk 0:01:03]} 35...
Rxh2 {[%clk 0:00:57.7]} 36. a4 {[%clk 0:01:02.7]} 36... h5 {[%clk 0:00:57.3]}
37. a5 {[%clk 0:01:03]} 37... Ke6 {[%clk 0:00:56]} 38. a6 {[%clk 0:01:03.1]}
38... Kf5 {[%clk 0:00:56]} 39. a7 {[%clk 0:01:03.1]} 1-0

[Event "*** Titled Tuesday Blitz"]
[Site "Chess.com"]
[Date "2020.05.05"]
[Round "7"]
[White "Saxar85"]
[Black "PavelChernomordik"]
[Result "1-0"]
[WhiteElo "2631"]
[BlackElo "2416"]
[TimeControl "180+1"]
[EndTime "11:17:17 PDT"]
[Termination "Saxar85 won by resignation"]

1. e4 {[%clk 0:02:59.7]} 1... g6 {[%clk 0:02:59.9]} 2. d4 {[%clk 0:02:55.1]}
2... Bg7 {[%clk 0:02:59.8]} 3. Nc3 {[%clk 0:02:54.9]} 3... d6 {[%clk 0:02:59]}
4. f4 {[%clk 0:02:53.9]} 4... a6 {[%clk 0:02:58]} 5. Nf3 {[%clk 0:02:53.5]} 5...
b5 {[%clk 0:02:57.9]} 6. Bd3 {[%clk 0:02:53.2]} 6... Nd7 {[%clk 0:02:57.9]} 7.
O-O {[%clk 0:02:50.8]} 7... c5 {[%clk 0:02:57.2]} 8. dxc5 {[%clk 0:02:39.3]}
8... Nxc5 {[%clk 0:02:56.5]} 9. Be3 {[%clk 0:02:38.9]} 9... Nxd3 {[%clk
0:02:54.5]} 10. cxd3 {[%clk 0:02:38.5]} 10... Bb7 {[%clk 0:02:54.8]} 11. Qb3
{[%clk 0:02:30.3]} 11... Nf6 {[%clk 0:02:47.7]} 12. h3 {[%clk 0:02:25.8]} 12...
Rb8 {[%clk 0:02:34]} 13. Ba7 {[%clk 0:02:16.5]} 13... Ra8 {[%clk 0:02:32.7]} 14.
Bd4 {[%clk 0:02:16.2]} 14... O-O {[%clk 0:02:30.1]} 15. a4 {[%clk 0:02:13.7]}
15... Nh5 {[%clk 0:02:20.2]} 16. Bxg7 {[%clk 0:02:05]} 16... Kxg7 {[%clk
0:02:18.9]} 17. f5 {[%clk 0:02:04.7]} 17... Qb6+ {[%clk 0:02:14.4]} 18. d4
{[%clk 0:02:03.9]} 18... Ng3 {[%clk 0:02:02.7]} 19. Rfe1 {[%clk 0:01:58.4]}
19... gxf5 {[%clk 0:02:01.6]} 20. Nd5 {[%clk 0:01:48.6]} 20... Bxd5 {[%clk
0:01:55.1]} 21. exd5 {[%clk 0:01:41.5]} 21... Ne4 {[%clk 0:01:51.5]} 22. Kh2
{[%clk 0:01:39.7]} 22... Rab8 {[%clk 0:01:47.5]} 23. Nh4 {[%clk 0:01:34.3]}
23... e6 {[%clk 0:01:27]} 24. dxe6 {[%clk 0:01:33.3]} 24... bxa4 {[%clk
0:01:09.3]} 25. Nxf5+ {[%clk 0:01:29.1]} 25... Kh8 {[%clk 0:01:07.1]} 26. Qxb6
{[%clk 0:01:24]} 26... Rxb6 {[%clk 0:01:06.3]} 27. e7 {[%clk 0:01:23.5]} 27...
Re8 {[%clk 0:01:05.4]} 28. Rxe4 {[%clk 0:01:23.1]} 28... d5 {[%clk 0:01:04]} 29.
Re5 {[%clk 0:01:22.6]} 29... f6 {[%clk 0:00:54.3]} 30. Rxd5 {[%clk 0:01:22.4]}
30... Kg8 {[%clk 0:00:54.6]} 31. Rxa4 {[%clk 0:01:20.1]} 31... Kf7 {[%clk
0:00:52.3]} 32. Nd6+ {[%clk 0:01:18.5]} 32... Ke6 {[%clk 0:00:50.4]} 33. Nxe8
{[%clk 0:01:18.3]} 33... Kxe7 {[%clk 0:00:45.2]} 34. Ng7 {[%clk 0:01:14.7]}
34... Rxb2 {[%clk 0:00:43.1]} 35. Rxa6 {[%clk 0:01:13.1]} 35... Kf7 {[%clk
0:00:42.9]} 36. Nh5 {[%clk 0:01:11.6]} 1-0

[Event "*** Titled Tuesday Blitz"]
[Site "Chess.com"]
[Date "2020.05.05"]
[Round "7"]
[White "StegariuVlad"]
[Black "DenisQ"]
[Result "1-0"]
[WhiteElo "2542"]
[BlackElo "2654"]
[TimeControl "180+1"]
[EndTime "11:17:18 PDT"]
[Termination "StegariuVlad won by resignation"]

1. e4 {[%clk 0:03:00.9]} 1... c6 {[%clk 0:02:59.1]} 2. d4 {[%clk 0:02:58.9]}
2... d5 {[%clk 0:02:59]} 3. exd5 {[%clk 0:02:57.7]} 3... cxd5 {[%clk 0:02:55.5]}
4. Bd3 {[%clk 0:02:57.2]} 4... Nc6 {[%clk 0:02:54.7]} 5. c3 {[%clk 0:02:56.9]}
5... Nf6 {[%clk 0:02:53.1]} 6. h3 {[%clk 0:02:56.2]} 6... e5 {[%clk 0:02:49.5]}
7. dxe5 {[%clk 0:02:55.8]} 7... Nxe5 {[%clk 0:02:49]} 8. Nf3 {[%clk 0:02:56.3]}
8... Nxd3+ {[%clk 0:02:48.9]} 9. Qxd3 {[%clk 0:02:57.2]} 9... Bc5 {[%clk
0:02:48.4]} 10. O-O {[%clk 0:02:54.6]} 10... O-O {[%clk 0:02:47.9]} 11. Nbd2
{[%clk 0:02:53.7]} 11... Re8 {[%clk 0:02:40]} 12. Nb3 {[%clk 0:02:53.6]} 12...
Bb6 {[%clk 0:02:38.5]} 13. Bg5 {[%clk 0:02:52.7]} 13... h6 {[%clk 0:02:13.5]}
14. Bh4 {[%clk 0:02:47.5]} 14... Qd6 {[%clk 0:02:05.1]} 15. Bg3 {[%clk
0:02:44.4]} 15... Qc6 {[%clk 0:01:58.3]} 16. Nbd4 {[%clk 0:02:41.7]} 16... Qc4
{[%clk 0:01:54.8]} 17. Qxc4 {[%clk 0:02:01.2]} 17... dxc4 {[%clk 0:01:55.7]} 18.
Rfe1 {[%clk 0:02:01.3]} 18... Bd7 {[%clk 0:01:50.4]} 19. Ne5 {[%clk 0:01:59.2]}
19... Bxd4 {[%clk 0:01:48.3]} 20. cxd4 {[%clk 0:01:53.8]} 20... Be6 {[%clk
0:01:46.4]} 21. f3 {[%clk 0:01:47.9]} 21... Rac8 {[%clk 0:01:44]} 22. Rac1
{[%clk 0:01:44.7]} 22... Red8 {[%clk 0:01:41.5]} 23. Bf2 {[%clk 0:01:42.7]}
23... b5 {[%clk 0:01:39.5]} 24. Ng4 {[%clk 0:01:37.8]} 24... Nd5 {[%clk
0:01:34.1]} 25. a3 {[%clk 0:01:37.5]} 25... Nf4 {[%clk 0:01:30.6]} 26. Red1
{[%clk 0:01:16.5]} 26... Nd3 {[%clk 0:01:27.7]} 27. Rc2 {[%clk 0:01:15.9]} 27...
Bxg4 {[%clk 0:01:18.5]} 28. hxg4 {[%clk 0:01:14.4]} 28... a5 {[%clk 0:01:09.2]}
29. Re2 {[%clk 0:01:13.7]} 29... Rd7 {[%clk 0:01:04.7]} 30. Rc2 {[%clk
0:01:08.6]} 30... a4 {[%clk 0:00:50.8]} 31. Rxd3 {[%clk 0:01:07.3]} 1-0

[Event "*** Titled Tuesday Blitz"]
[Site "Chess.com"]
[Date "2020.05.05"]
[Round "7"]
[White "Aureliano-Buendia"]
[Black "RATNAKARAN"]
[Result "1-0"]
[WhiteElo "2411"]
[BlackElo "2555"]
[TimeControl "180+1"]
[EndTime "11:17:25 PDT"]
[Termination "Aureliano-Buendia won by resignation"]

1. d4 {[%clk 0:03:00.7]} 1... Nf6 {[%clk 0:02:59.5]} 2. c4 {[%clk 0:02:57.1]}
2... c5 {[%clk 0:02:59]} 3. d5 {[%clk 0:02:54.7]} 3... e6 {[%clk 0:02:58.9]} 4.
Nc3 {[%clk 0:02:53.9]} 4... exd5 {[%clk 0:02:59.8]} 5. cxd5 {[%clk 0:02:54.8]}
5... d6 {[%clk 0:03:00.4]} 6. g3 {[%clk 0:02:54.9]} 6... a6 {[%clk 0:03:00.1]}
7. a4 {[%clk 0:02:53.8]} 7... Bg4 {[%clk 0:03:00]} 8. Bg2 {[%clk 0:02:53.5]}
8... Nbd7 {[%clk 0:02:59.7]} 9. Nf3 {[%clk 0:02:53.2]} 9... Bxf3 {[%clk
0:02:59.6]} 10. Bxf3 {[%clk 0:02:53.1]} 10... h5 {[%clk 0:02:59.5]} 11. O-O
{[%clk 0:02:51.8]} 11... h4 {[%clk 0:02:59.7]} 12. Bg5 {[%clk 0:02:46.8]} 12...
hxg3 {[%clk 0:02:59.3]} 13. hxg3 {[%clk 0:02:45.6]} 13... Ne5 {[%clk 0:02:59.2]}
14. Kg2 {[%clk 0:02:40.4]} 14... Qd7 {[%clk 0:02:56.8]} 15. Rh1 {[%clk
0:02:39.8]} 15... Rxh1 {[%clk 0:02:55.9]} 16. Qxh1 {[%clk 0:02:39.5]} 16... Nxf3
{[%clk 0:02:56.3]} 17. exf3 {[%clk 0:02:37.7]} 17... O-O-O {[%clk 0:02:55.5]}
18. Bxf6 {[%clk 0:02:32.9]} 18... gxf6 {[%clk 0:02:55.2]} 19. Qh7 {[%clk
0:02:29.9]} 19... Re8 {[%clk 0:02:50.7]} 20. Ne4 {[%clk 0:02:24.1]} 20... Re5
{[%clk 0:02:38]} 21. Nxf6 {[%clk 0:02:20.4]} 21... Qe7 {[%clk 0:02:35.9]} 22.
Ne4 {[%clk 0:02:13.5]} 22... Rxd5 {[%clk 0:02:32.6]} 23. Re1 {[%clk 0:01:59.2]}
23... f5 {[%clk 0:02:31.3]} 24. Qg8 {[%clk 0:01:48.9]} 24... Re5 {[%clk
0:02:29.1]} 25. Nxd6+ {[%clk 0:01:47.8]} 25... Qxd6 {[%clk 0:02:24.1]} 26. Rxe5
{[%clk 0:01:47.3]} 26... Qxe5 {[%clk 0:02:25]} 27. Qxf8+ {[%clk 0:01:47.3]}
27... Kc7 {[%clk 0:02:25.6]} 28. Qf7+ {[%clk 0:01:46.8]} 28... Kb6 {[%clk
0:02:24.5]} 29. b3 {[%clk 0:01:46.8]} 29... a5 {[%clk 0:02:14]} 30. Qc4 {[%clk
0:01:45.8]} 30... Ka7 {[%clk 0:02:12]} 31. g4 {[%clk 0:01:44.1]} 31... f4 {[%clk
0:02:11.1]} 32. Qb5 {[%clk 0:01:40.6]} 32... b6 {[%clk 0:02:07.6]} 33. Qd7+
{[%clk 0:01:39.6]} 33... Kb8 {[%clk 0:02:07.6]} 34. Qf7 {[%clk 0:01:27.1]} 34...
Kc8 {[%clk 0:02:03.4]} 35. Qg6 {[%clk 0:01:25.8]} 35... Kc7 {[%clk 0:02:02]} 36.
Qe4 {[%clk 0:01:23.6]} 36... Qxe4 {[%clk 0:01:47.9]} 37. fxe4 {[%clk 0:01:22.9]}
37... b5 {[%clk 0:01:48.8]} 38. axb5 {[%clk 0:01:22.9]} 38... c4 {[%clk
0:01:49.1]} 39. bxc4 {[%clk 0:01:22.1]} 39... a4 {[%clk 0:01:49.4]} 40. b6+
{[%clk 0:01:20.4]} 40... Kxb6 {[%clk 0:01:49.1]} 41. g5 {[%clk 0:01:20.6]} 41...
a3 {[%clk 0:01:49.4]} 42. g6 {[%clk 0:01:20.9]} 42... a2 {[%clk 0:01:49]} 43. g7
{[%clk 0:01:21.2]} 43... a1=Q {[%clk 0:01:48.6]} 44. g8=Q {[%clk 0:01:21.6]}
44... f3+ {[%clk 0:01:42.5]} 45. Kxf3 {[%clk 0:01:20.7]} 45... Qf6+ {[%clk
0:01:39.3]} 46. Kg2 {[%clk 0:01:19.8]} 46... Qf4 {[%clk 0:01:39.4]} 47. Qg6+
{[%clk 0:01:15.7]} 47... Kb7 {[%clk 0:01:38.2]} 48. Qe6 {[%clk 0:01:12.1]} 48...
Qg5+ {[%clk 0:01:37.5]} 49. Kf3 {[%clk 0:01:11.9]} 49... Qh5+ {[%clk 0:01:37.9]}
50. Ke3 {[%clk 0:01:11.5]} 50... Qg5+ {[%clk 0:01:37.7]} 51. f4 {[%clk
0:01:11.6]} 51... Qg3+ {[%clk 0:01:37.6]} 52. Kd4 {[%clk 0:01:12]} 52... Qxf4
{[%clk 0:01:37.7]} 53. Qd5+ {[%clk 0:01:12.2]} 53... Kc8 {[%clk 0:01:36.6]} 54.
Qf5+ {[%clk 0:01:10.5]} 1-0